bitfinex/quotes_SOLUSD_20251013
["timestamp","ask_amount","ask_price","bid_price","bid_amount"]
[1760365490266,8.98761394,193.95,193.89,5.15756356]
[1760365490681,8.98761394,193.93,193.87,5.15789588]
[1760365490885,8.98761394,193.89,193.84,5.15889393]
[1760365491074,8.98761394,193.91,193.84,5.15889393]
[1760365491279,0.72,193.92,193.84,5.15889393]
[1760365491778,20.8,193.96,193.87,8.98761394]
[1760365491779,8.98761394,193.96,193.87,8.98761394]
[1760365491975,0.72,193.99,193.89,8.98761394]
[1760365492287,8.98761394,193.98,193.89,8.98761394]
[1760365492490,0.72,193.99,193.9,0.51572974]
[1760365492688,0.0968331,194.06,193.97,8.98761394]
[1760365492873,0.0968331,194.06,193.92,10.87647521]
[1760365492874,9.81785377,194.05,193.93,0.51564997]
[1760365493075,0.83023983,194.05,193.97,8.98761394]
[1760365493277,9.81785377,194.05,193.97,8.98761394]
[1760365493688,9.81785377,194.05,193.93,0.51564997]
[1760365493877,8.98761394,194.03,193.95,8.98761394]
[1760365494481,8.98761394,194.03,193.94,5.15623388]
[1760365494482,9.70761394,194.04,193.97,8.98761394]
[1760365494791,0.72,194.04,193.97,8.98761394]
[1760365495792,0.72,194.04,193.98,18.04309722]
[1760365496007,9.70761394,194.04,193.98,18.04309722]
[1760365496896,0.72,194.04,193.98,18.04309722]
[1760365497595,0.72,194.04,193.99,8.98761394]
[1760365497894,0.72,194.04,194.0,18.0412371]
[1760365498272,0.11023983,194.05,194.0,18.0412371]
[1760365498469,0.11023983,194.05,194.01,8.98761394]
[1760365498895,0.11023983,194.05,194.01,10.18305128]
[1760365499100,0.11023983,194.05,194.03,8.98761394]
[1760365499280,0.11023983,194.05,194.04,8.98761394]
[1760365499797,0.11023983,194.05,194.04,14.14119052]
[1760365500096,0.2180755,194.05,194.04,14.82119052]
[1760365500272,0.10783567,194.05,194.04,5.15357658]
[1760365500473,0.82783567,194.05,194.03,5.15383463]
[1760365500687,0.10783567,194.05,194.01,8.98761394]
[1760365500900,0.10783567,194.05,194.02,0.68]
[1760365501084,0.10783567,194.05,194.04,8.98761394]
[1760365501497,0.10943437,194.06,194.04,5.94642624]
[1760365501798,1e-08,194.06,194.05,11.61506834]
[1760365502000,1e-08,194.08,194.05,25.17834584]
[1760365502205,1e-08,194.08,194.06,0.68]
[1760365502389,1e-08,194.08,194.07,5.94642624]
[1760365503292,1e-08,194.08,194.07,6.62642624]
[1760365503484,0.10288293,194.12,194.09,5.94642624]
[1760365503683,0.10288293,194.12,194.11,5.94642624]
[1760365503880,0.10288293,194.12,194.11,11.09814433]
[1760365504405,0.82288293,194.12,194.08,5.15251442]
[1760365504576,0.72,194.11,194.08,5.15251442]
[1760365505078,0.72,194.11,194.08,18.03380048]
[1760365505277,0.10288293,194.12,194.05,5.153311]
[1760365505278,6.66642624,194.1,194.05,5.153311]
[1760365505504,5.94642624,194.08,194.02,5.94642624]
[1760365505793,5.94642624,194.1,194.01,12.88556812]
[1760365506006,6.66642624,194.07,194.0,5.94642624]
[1760365506297,6.66642624,194.07,193.99,5.15490489]
[1760365506501,6.66642624,194.06,194.0,5.94642624]
[1760365506701,6.66642624,194.06,193.99,18.04216712]
[1760365506903,5.94642624,194.01,193.94,5.94642624]
[1760365507076,5.94642624,193.98,193.86,0.68]
[1760365507399,5.94642624,194.04,193.87,5.94642624]
[1760365507400,5.94642624,193.94,193.87,5.94642624]
[1760365507598,0.72,193.93,193.88,5.94642624]
[1760365507777,0.72,193.92,193.89,5.15756356]
[1760365507975,0.72,193.95,193.91,5.94642624]
[1760365508200,0.72,193.95,193.92,5.94642624]
[1760365508397,3.43124762,193.94,193.92,5.94642624]
[1760365508603,3.43124762,193.93,193.77,19.99999999]
[1760365508893,3.43124762,193.93,193.74,15.2553038]
[1760365508894,17.4038904,193.9,193.83,20.8]
[1760365509102,17.4038904,193.9,193.89,5.94642624]
[1760365509407,35.1343244,193.9,193.89,5.94642624]
[1760365509706,14.88569465,193.9,193.89,5.94642624]
[1760365509901,3.43199778,193.9,193.89,11.1039898]
[1760365510404,14.88569465,193.9,193.89,11.1039898]
[1760365510608,21.55588818,193.9,193.89,5.15756356]
[1760365510906,33.0184462,193.9,193.89,5.15756356]
[1760365511111,17.4038904,193.88,193.82,5.15931036]
[1760365511315,28.86983353,193.86,193.82,18.05787603]
[1760365511614,3.43199778,193.85,193.82,18.05787603]
[1760365511785,3.43199778,193.84,193.82,18.05787603]
[1760365512114,14.89794091,193.83,193.82,5.15931036]
[1760365512280,17.4038904,193.82,193.72,10.87647521]
[1760365512478,3.43199778,193.81,193.73,0.31408088]
[1760365512684,3.43199778,193.8,193.74,20.8]
[1760365512981,3.43199778,193.79,193.75,0.31410876]
[1760365513185,13.99199778,193.78,193.72,0.51620896]
[1760365513381,17.4038904,193.76,193.69,5.77917499]
[1760365513613,17.4038904,193.76,193.75,5.94642624]
[1760365513790,27.2638904,193.77,193.75,5.94642624]
[1760365514104,28.87696166,193.79,193.76,5.94642624]
[1760365514411,17.4038904,193.77,193.74,5.94642624]
[1760365514586,27.2638904,193.78,193.74,5.94642624]
[1760365514909,17.4038904,193.77,193.75,5.94642624]
[1760365515103,17.4038904,193.77,193.76,5.94642624]
[1760365515306,9.86,193.77,193.76,5.94642624]
[1760365515913,27.2638904,193.77,193.76,11.10745018]
[1760365516090,27.2638904,193.77,193.76,5.16102394]
[1760365516487,17.4038904,193.73,193.7,5.16262261]
[1760365516703,9.86,193.72,193.69,13.00722288]
[1760365517001,9.86,193.71,193.69,18.16995869]
[1760365517389,17.4038904,193.73,193.69,18.16995869]
[1760365517702,9.84,193.72,193.7,0.51626225]
[1760365517906,9.84,193.72,193.71,11.10878233]
[1760365518107,0.7,193.81,193.71,24.01467257]
[1760365518304,9.86,193.8,193.72,0.51620896]
[1760365518482,0.51580956,193.81,193.72,0.51620896]
[1760365518687,9.86,193.82,193.73,10.87647521]
[1760365518890,0.7,193.86,193.71,43.88002682]
[1760365518891,9.86,193.81,193.78,5.94642624]
[1760365519088,9.86,193.8,193.78,5.94642624]
[1760365519304,9.86,193.8,193.79,5.94642624]
[1760365519815,9.86,193.8,193.71,43.88002682]
[1760365519816,17.0222358,193.8,193.71,43.88002682]
[1760365520030,5.94642624,193.79,193.7,5.16262261]
[1760365520312,5.94642624,193.72,193.69,0.1]
[1760365520521,16.3222358,193.71,193.69,0.1]
[1760365520725,21.30377162,193.7,193.6,0.51652892]
[1760365520887,13.29314352,193.69,193.56,5.94642624]
[1760365521083,3.43314352,193.68,193.65,5.94642624]
[1760365521310,9.86,193.69,193.56,5.94642624]
[1760365521311,3.43314352,193.67,193.56,5.94642624]
[1760365521514,3.43314352,193.66,193.49,19.99999999]
[1760365521720,4.28567527,193.59,193.5,38.75964341]
[1760365522006,4.28567527,193.59,193.47,19.99999999]
[1760365522007,9.86,193.62,193.59,5.16555607]
[1760365522315,12.22183635,193.69,193.61,5.94642624]
[1760365522609,9.86,193.68,193.63,5.94642624]
[1760365522988,10.87647521,193.66,193.64,5.94642624]
[1760365523193,9.86,193.68,193.65,5.94642624]
[1760365523396,10.56,193.68,193.64,5.94642624]
[1760365523693,10.56,193.68,193.59,43.90722661]
[1760365523694,10.87647521,193.66,193.63,5.94642624]
[1760365523890,10.87647521,193.66,193.59,43.90722661]
[1760365523891,0.7,193.65,193.59,25.82778036]
[1760365524207,9.86,193.64,193.59,25.82778036]
[1760365524406,10.56,193.64,193.59,25.82778036]
[1760365524603,9.86,193.64,193.6,5.94642624]
[1760365524799,10.56,193.64,193.59,25.82778036]
[1760365525001,10.56,193.64,193.61,5.94642624]
[1760365525399,9.86,193.63,193.59,25.82778036]
[1760365525599,11.57647521,193.62,193.56,0.25895733]
[1760365525807,17.52290145,193.62,193.56,0.25895733]
[1760365525991,10.87647521,193.6,193.55,5.16662361]
[1760365526311,10.87647521,193.58,193.51,5.16769159]
[1760365526488,10.87647521,193.58,193.55,5.94642624]
[1760365526695,10.87647521,193.58,193.52,0.25893056]
[1760365526998,10.87647521,193.56,193.53,5.94642624]
[1760365527197,9.86,193.55,193.51,18.34602499]
[1760365527412,0.7,193.61,193.54,6.20549049]
[1760365527712,9.86,193.6,193.58,5.94642624]
[1760365527913,10.87647521,193.58,193.54,12.9170369]
[1760365528113,9.86,193.57,193.55,5.94642624]
[1760365528416,20.73647521,193.57,193.56,5.94642624]
[1760365528601,0.6456278,193.61,193.56,5.94642624]
[1760365528801,9.84,193.61,193.6,5.94642624]
[1760365530113,9.84,193.61,193.57,0.25899732]
[1760365530114,10.54,193.61,193.58,18.08038019]
[1760365530316,9.84,193.61,193.58,18.08038019]
[1760365530515,10.54,193.61,193.58,18.08038019]
[1760365530817,9.84,193.61,193.58,24.02680643]
[1760365531015,10.87647521,193.59,193.58,5.16582291]
[1760365531721,0.64559446,193.62,193.58,5.16582291]
[1760365531929,20.71647521,193.61,193.6,11.11171549]
[1760365532095,9.84,193.61,193.6,24.02493863]
[1760365532808,10.87647521,193.66,193.61,5.94642624]
[1760365532997,11.57647521,193.66,193.6,49.85138491]
[1760365533315,0.7,193.66,193.6,49.85138491]
[1760365533538,11.57647521,193.66,193.6,49.85138491]
[1760365533708,5.94642624,193.64,193.6,18.07851239]
[1760365533913,14.96704276,193.63,193.6,12.91322314]
[1760365534108,10.87647521,193.61,193.6,12.91322314]
[1760365534339,14.26704276,193.61,193.6,18.85964938]
[1760365534509,10.87647521,193.66,193.6,19.11851336]
[1760365534711,10.87647521,193.66,193.65,5.94642624]
[1760365534922,10.87647521,193.73,193.65,5.94642624]
[1760365535145,10.87647521,193.73,193.68,5.94642624]
[1760365535320,11.57647521,193.73,193.68,5.94642624]
[1760365535635,10.87647521,193.69,193.63,5.94642624]
[1760365536009,10.87647521,193.69,193.62,18.07664496]
[1760365536208,10.87647521,193.64,193.62,18.07664496]
[1760365536409,10.87647521,193.63,193.62,5.1647557]
[1760365536631,11.57647521,193.63,193.62,5.1647557]
[1760365536838,11.57647521,193.63,193.59,13.17179423]
[1760365537020,10.87647521,193.61,193.59,12.91337068]
[1760365537635,0.7,193.66,193.6,18.07851239]
[1760365537837,0.7,193.7,193.65,5.94642624]
[1760365538129,4.33403697,193.81,193.6,18.07851239]
[1760365538130,10.87647521,193.74,193.68,24.01747126]
[1760365538319,11.5216698,193.74,193.68,18.07104502]
[1760365538511,10.87647521,193.74,193.7,5.94642624]
[1760365538709,0.7,193.74,193.7,5.94642624]
[1760365539125,12.2216032,193.76,193.71,5.94642624]
[1760365539330,10.87647521,193.74,193.71,5.94642624]
[1760365539644,16.82290145,193.72,193.62,5.1647557]
[1760365539808,0.5,193.73,193.63,0.25864494]
[1760365540013,10.98387807,193.72,193.71,11.10878233]
[1760365540336,11.68387807,193.72,193.62,18.07664496]
[1760365540517,11.68387807,193.72,193.66,5.94642624]
[1760365540720,10.87647521,193.7,193.65,5.94642624]
[1760365540914,0.7,193.69,193.64,5.94642624]
[1760365541253,10.87647521,193.7,193.65,6.20497002]
[1760365541536,0.7,193.68,193.65,0.25854378]
[1760365541741,6.64642624,193.67,193.63,0.25854378]
[1760365541916,11.57647521,193.66,193.62,43.90042349]
[1760365542116,10.87647521,193.66,193.62,43.90042349]
[1760365542335,0.7,193.66,193.62,43.90042349]
[1760365542917,16.82290145,193.69,193.63,0.25847697]
[1760365543126,10.87647521,193.65,193.62,18.07664496]
[1760365543331,11.56647521,193.65,193.62,18.07664496]
[1760365543532,0.69,193.65,193.62,18.07664496]
[1760365543712,10.87647521,193.71,193.62,18.07664496]
[1760365543713,1.33532782,193.7,193.64,5.94642624]
[1760365543913,10.98387807,193.72,193.66,5.94642624]
[1760365544137,5.94642624,193.7,193.67,18.33029489]
[1760365544339,11.56647521,193.69,193.67,18.0719781]
[1760365544549,11.56647521,193.68,193.67,5.16342231]
[1760365544715,7.2818207,193.68,193.59,5.16555607]
[1760365544915,10.87647521,193.64,193.59,5.16555607]
[1760365545318,10.87647521,193.65,193.61,12.91217289]
[1760365545517,0.5,193.69,193.63,5.94642624]
[1760365545723,16.82290145,193.7,193.64,0.25823705]
[1760365545936,16.82290145,193.68,193.62,0.25825613]
[1760365546127,10.87647521,193.68,193.63,18.0757114]
[1760365546333,0.69,193.67,193.63,18.0757114]
[1760365546830,10.87647521,193.68,193.63,18.0757114]
[1760365547043,0.69,193.67,193.63,18.0757114]
[1760365547338,10.87647521,193.68,193.65,5.94642624]
[1760365547549,10.87647521,193.71,193.66,6.20498333]
[1760365547837,0.72,193.7,193.64,0.25855709]
[1760365548016,0.72,193.7,193.58,18.08038019]
[1760365548017,16.82290145,193.68,193.58,18.08038019]
[1760365548216,5.94642624,193.67,193.59,0.25889065]
[1760365548532,16.82290145,193.64,193.58,5.16582291]
[1760365548745,10.87647521,193.64,193.58,11.37128664]
[1760365548954,20.8,193.71,193.54,0.67]
[1760365548955,5.94642624,193.59,193.57,5.16597611]
[1760365549112,11.59647521,193.59,193.51,12.91922898]
[1760365549313,17.54290145,193.59,193.52,6.20571445]
[1760365549738,10.87647521,193.6,193.54,5.94642624]
[1760365549955,10.87647521,193.6,193.55,6.20563698]
[1760365550236,0.72,193.59,193.56,5.16635668]
[1760365550416,10.87647521,193.58,193.56,5.16635668]
[1760365550736,10.87647521,193.56,193.52,5.94642624]
[1760365550917,6.66642624,193.58,193.52,0.25927771]
[1760365551421,10.87647521,193.56,193.51,5.16769159]
[1760365551718,10.87647521,193.57,193.52,0.25919731]
[1760365551922,10.87647521,193.59,193.54,5.94642624]
[1760365552118,0.72,193.58,193.56,5.16635668]
[1760365552346,10.87647521,193.56,193.53,5.16715754]
[1760365552518,16.82290145,193.54,193.47,5.16876001]
[1760365552720,10.87647521,193.51,193.47,5.16876001]
[1760365552933,20.8,193.48,193.46,0.1]
[1760365553139,17.46899645,193.47,193.46,0.1]
[1760365553357,18.18899645,193.47,193.46,0.1]
[1760365553654,12.24257021,193.47,193.46,0.1]
[1760365553814,10.87647521,193.49,193.46,5.26902718]
[1760365554021,16.82290145,193.51,193.46,18.19159515]
[1760365554221,0.72,193.5,193.46,18.19159515]
[1760365554447,6.66642624,193.49,193.46,5.26902718]
[1760365554646,0.72,193.49,193.46,5.26902718]
[1760365554829,10.87647521,193.47,193.46,5.26902718]
[1760365555144,18.18899645,193.47,193.46,0.1]
[1760365555337,38.98899645,193.47,193.46,0.1]
[1760365555857,0.64592806,193.52,193.46,5.26902718]
[1760365556153,0.72,193.53,193.46,5.26902718]
[1760365556154,10.87647521,193.51,193.46,24.13802139]
[1760365556320,5.94642624,193.56,193.49,5.94642624]
[1760365556637,5.94642624,193.56,193.5,6.20594404]
[1760365556638,10.87647521,193.54,193.5,6.20594404]
[1760365556949,0.72,193.6,193.53,5.94642624]
[1760365557252,5.94642624,193.68,193.56,5.94642624]
[1760365557253,5.94642624,193.62,193.56,5.94642624]
[1760365557544,5.94642624,193.62,193.54,0.2592508]
[1760365557545,10.87647521,193.61,193.55,5.94642624]
[1760365557740,10.87647521,193.62,193.56,6.20557024]
[1760365558118,10.87647521,193.62,193.57,18.08131424]
[1760365558337,11.59647521,193.62,193.57,18.08131424]
[1760365558538,10.87647521,193.6,193.57,5.16608978]
[1760365559019,10.87647521,193.58,193.55,5.16653389]
[1760365559231,10.87647521,193.56,193.54,5.16687801]
[1760365559424,17.54290145,193.56,193.54,5.16687801]
[1760365559843,1.1456945,193.59,193.5,13.17870224]
[1760365559844,10.87647521,193.59,193.53,5.94642624]
[1760365560141,0.0976349,193.55,193.54,5.16689056]
[1760365560342,0.0976349,193.55,193.52,5.16716957]
[1760365560543,10.87647521,193.52,193.48,5.1684879]
[1760365560720,5.94642624,193.51,193.47,5.16874562]
[1760365560920,11.52233653,193.54,193.46,0.1]
[1760365560921,5.94642624,193.49,193.46,0.1]
[1760365561121,5.94642624,193.47,193.46,0.1]
[1760365561650,5.94642624,193.47,193.39,0.77]
[1760365561651,10.87647521,193.46,193.39,0.1]
[1760365561824,10.87647521,193.44,193.39,0.1]
[1760365562028,5.94642624,193.42,193.39,0.1]
[1760365562353,0.72,193.47,193.39,13.02724546]
[1760365562649,5.94642624,193.42,193.39,5.2707163]
[1760365563030,10.87647521,193.44,193.39,5.2707163]
[1760365563234,16.82290145,193.41,193.39,0.1]
[1760365563430,19.91514402,193.41,193.39,5.27087365]
[1760365563838,0.64616179,193.45,193.39,5.27087365]
[1760365564151,10.87647521,193.42,193.39,18.19811911]
[1760365564351,0.72,193.51,193.41,9.03866881]
[1760365564653,10.87647521,193.5,193.42,0.92917148]
[1760365564825,10.87647521,193.5,193.44,9.03866881]
[1760365565147,9.03866881,193.51,193.46,9.03866881]
[1760365565148,0.5,193.51,193.46,9.03866881]
[1760365565320,9.03866881,193.54,193.47,9.2977733]
[1760365565523,9.03866881,193.49,193.42,9.03866881]
[1760365565820,10.87647521,193.49,193.44,9.03866881]
[1760365566027,9.03866881,193.48,193.45,0.25903751]
[1760365566334,9.03866881,193.51,193.46,18.09159515]
[1760365566524,9.75866881,193.51,193.46,18.09159515]
[1760365566726,10.87647521,193.5,193.46,18.09159515]
[1760365566927,10.87647521,193.51,193.47,0.25901073]
[1760365567128,19.91514402,193.51,193.47,0.25901073]
[1760365567321,20.63514402,193.51,193.47,0.25901073]
[1760365567519,20.8,193.53,193.48,9.03866881]
[1760365567748,10.87647521,193.53,193.49,0.25898395]
[1760365567960,0.0976349,193.55,193.52,9.03866881]
[1760365568248,0.0976349,193.55,193.48,5.16849286]
[1760365568249,9.03866881,193.53,193.48,5.16849286]
[1760365568431,9.03866881,193.53,193.48,18.08972502]
[1760365568627,0.0976349,193.55,193.49,0.92955541]
[1760365569034,9.03866881,193.54,193.49,0.25955541]
[1760365569233,10.87647521,193.53,193.49,0.25955541]
[1760365569431,10.97411011,193.55,193.49,9.29822422]
[1760365569737,0.0976349,193.55,193.51,9.03866881]
[1760365569926,0.0976349,193.55,193.52,0.2594643]
[1760365570122,0.0976349,193.55,193.54,5.16689056]
[1760365570349,9.85630371,193.55,193.52,5.16739071]
[1760365570552,9.03866881,193.54,193.52,5.16739071]
[1760365570750,9.75866881,193.53,193.5,5.16771531]
[1760365570952,9.03866881,193.53,193.5,5.16771531]
[1760365571127,0.0976349,193.55,193.51,9.29798563]
[1760365571331,0.0976349,193.55,193.54,9.03866881]
[1760365571759,0.0976349,193.55,193.54,9.29794543]
[1760365572063,1e-08,193.55,193.54,9.96794543]
[1760365572236,1e-08,193.55,193.54,15.13483599]
[1760365572757,1e-08,193.55,193.54,6.09616718]
[1760365572935,1e-08,193.55,193.54,5.42616718]
[1760365573334,0.69000001,193.55,193.51,0.2593575]
[1760365573563,9.72866882,193.55,193.52,5.16742455]
[1760365573768,9.03866881,193.53,193.45,0.71]
[1760365574061,1e-08,193.55,193.49,9.03866881]
[1760365574355,1e-08,193.55,193.54,9.03866881]
[1760365575546,0.10685058,193.57,193.54,9.74866881]
[1760365575756,0.10685058,193.57,193.56,9.03866881]
[1760365575934,0.10685058,193.57,193.55,0.25929075]
[1760365576130,0.10685058,193.57,193.56,9.03866881]
[1760365576347,1e-08,193.58,193.56,14.20502549]
[1760365576631,1e-08,193.59,193.57,0.96918396]
[1760365576836,1e-08,193.61,193.58,9.03866881]
[1760365577059,1e-08,193.61,193.6,9.03866881]
[1760365577295,1e-08,193.61,193.59,0.25902387]
[1760365577644,1e-08,193.61,193.6,9.03866881]
[1760365578361,1e-08,193.61,193.6,14.20395806]
[1760365578556,1e-08,193.61,193.6,14.46291522]
[1760365579266,1e-08,193.61,193.6,15.17291522]
[1760365579862,20.8,193.7,193.6,37.86613836]
[1760365580044,0.10331874,193.65,193.62,9.03866881]
[1760365580244,0.10331874,193.65,193.64,14.20289107]
[1760365580878,0.10331874,193.65,193.64,5.16422226]
[1760365581543,0.10331874,193.65,193.63,0.2587571]
[1760365581742,10.87647521,193.63,193.58,5.16582291]
[1760365581959,10.87647521,193.63,193.58,18.08013496]
[1760365581960,0.69,193.62,193.58,18.08013496]
[1760365582160,19.91514402,193.64,193.58,5.16582291]
[1760365582366,0.79331874,193.65,193.6,9.03866881]
[1760365582575,0.10331874,193.65,193.63,9.03866881]
[1760365582748,0.10331874,193.65,193.64,0.25866361]
[1760365582957,0.10331874,193.65,193.64,9.29733242]
[1760365583157,0.79331874,193.65,193.6,0.25866361]
[1760365583357,0.69,193.64,193.6,0.25866361]
[1760365583867,0.69,193.63,193.6,0.25866361]
[1760365584474,0.69,193.63,193.61,5.16502246]
[1760365584670,0.69,193.62,193.61,5.16502246]
[1760365585260,20.01846276,193.65,193.61,5.16502246]
[1760365585261,0.10331874,193.65,193.61,5.16502246]
[1760365585463,0.79331874,193.65,193.61,5.16502246]
[1760365585779,10.87647521,193.63,193.59,14.204222]
[1760365586068,0.74881318,193.65,193.59,14.204222]
[1760365586069,1.43881318,193.65,193.59,14.204222]
[1760365586273,20.90331874,193.65,193.62,5.1647557]
[1760365586461,20.90331874,193.65,193.62,5.42331242]
[1760365586777,0.10331874,193.65,193.64,9.03866881]
[1760365586958,0.10331874,193.65,193.64,9.29719882]
[1760365587472,0.10098465,193.66,193.64,10.00719882]
[1760365587779,1e-08,193.66,193.65,9.74866881]
[1760365587966,1e-08,193.66,193.65,10.00718546]
[1760365588269,1e-08,193.66,193.65,14.46114104]
[1760365588776,1e-08,193.66,193.65,5.42247223]
[1760365588970,1e-08,193.66,193.65,5.16395558]
[1760365589171,1e-08,193.66,193.65,14.20262439]
[1760365589685,1e-08,193.67,193.65,14.91262439]
[1760365589844,1e-08,193.69,193.66,10.00713208]
[1760365590052,1e-08,193.69,193.68,9.03866881]
[1760365590270,1e-08,193.7,193.69,5.16288915]
[1760365590466,1e-08,193.7,193.69,15.1699151]
[1760365590776,1e-08,193.7,193.69,10.00702595]
[1760365592153,0.89,193.85,193.69,10.00702595]
[1760365592352,0.2,193.85,193.82,14.19809508]
[1760365592555,0.2,193.85,193.83,0.25742489]
[1760365593457,9.72866881,193.84,193.79,0.25742489]
[1760365593667,0.69,193.83,193.79,5.41763618]
[1760365594064,0.69,193.83,193.79,14.45630499]
[1760365594580,9.72866881,193.82,193.77,5.16072776]
[1760365594767,20.8,193.84,193.74,0.25742489]
[1760365594768,19.91514402,193.8,193.74,0.25742489]
[1760365594960,19.91514402,193.8,193.75,5.16129032]
[1760365595162,0.69,193.79,193.75,5.16129032]
[1760365595462,0.69,193.79,193.76,0.25739848]
[1760365595667,0.69,193.84,193.77,9.03866881]
[1760365595873,10.87647521,193.81,193.76,9.29606729]
[1760365596170,11.56647521,193.81,193.76,9.29606729]
[1760365596363,0.69,193.8,193.76,9.29606729]
[1760365596563,0.69,193.8,193.77,5.16075759]
[1760365596964,10.87647521,193.81,193.77,5.16075759]
[1760365597186,11.56647521,193.81,193.77,5.16075759]
[1760365598088,0.69,193.8,193.77,5.16075759]
[1760365598284,10.87647521,193.81,193.77,5.16075759]
[1760365598466,10.87647521,193.84,193.8,9.03866881]
[1760365598664,11.07647521,193.85,193.82,5.15942627]
[1760365599067,11.07647521,193.85,193.81,0.25733243]
[1760365599068,9.72866881,193.84,193.81,0.25733243]
[1760365599370,9.72866881,193.84,193.78,9.03866881]
[1760365599565,0.69,193.83,193.79,0.25729259]
[1760365599767,10.87647521,193.8,193.75,5.1610853]
[1760365599988,19.91514402,193.78,193.73,18.06638103]
[1760365600179,10.87647521,193.78,193.74,0.25726612]
[1760365600487,10.97721357,193.8,193.75,9.03866881]
[1760365600668,0.69,193.79,193.76,5.41826351]
[1760365602086,0.69,193.78,193.76,5.16102394]
[1760365602798,0.69,193.78,193.75,0.25723956]
[1760365602799,20.57514402,193.77,193.71,12.90538994]
[1760365602992,20.57514402,193.77,193.68,0.25723955]
[1760365602993,9.03866881,193.75,193.69,18.07011203]
[1760365603178,0.10073836,193.8,193.71,9.03866881]
[1760365603379,9.03866881,193.75,193.69,18.07011203]
[1760365603579,0.66,193.77,193.69,18.07011203]
[1760365603580,9.69866881,193.74,193.69,18.07011203]
[1760365603975,9.03866881,193.72,193.69,5.16288915]
[1760365604289,19.91514402,193.7,193.63,9.29588199]
[1760365604488,9.69866881,193.69,193.64,5.16422226]
[1760365604681,0.66,193.68,193.64,12.91055567]
[1760365604884,19.91514402,193.7,193.64,12.91055567]
[1760365605082,0.5,193.72,193.64,21.94922448]
[1760365605401,10.87647521,193.73,193.67,9.03866881]
[1760365605586,19.91514402,193.73,193.66,9.03866881]
[1760365605792,9.03866881,193.69,193.63,5.16448897]
[1760365606178,10.87647521,193.74,193.67,9.03866881]
[1760365606397,19.91514402,193.74,193.68,9.03866881]
[1760365606597,21.5457332,193.8,193.7,9.03866881]
[1760365606598,9.03866881,193.77,193.7,9.03866881]
[1760365606801,0.7457332,193.8,193.72,27.10598245]
[1760365607096,0.7457332,193.8,193.73,0.25710369]
[1760365607097,10.87647521,193.78,193.73,0.25710369]
[1760365607313,10.87647521,193.79,193.74,9.03866881]
[1760365607686,0.66,193.78,193.74,9.03866881]
[1760365607885,0.10073836,193.8,193.77,9.03866881]
[1760365608203,0.10073836,193.8,193.75,0.95707715]
[1760365608204,0.10073836,193.8,193.78,0.25703735]
[1760365608379,0.10073836,193.8,193.79,9.03866881]
[1760365608580,1e-08,193.8,193.79,9.73866881]
[1760365608794,1e-08,193.81,193.8,5.15995872]
[1760365609092,1e-08,193.82,193.8,15.15563835]
[1760365609296,1e-08,193.82,193.81,9.73866881]
[1760365609499,1e-08,193.82,193.81,9.03866881]
[1760365609800,1e-08,193.82,193.81,9.73866881]
[1760365610005,0.30654028,193.85,193.83,9.03866881]
[1760365610214,0.30654028,193.85,193.83,9.29612034]
[1760365610415,0.30654028,193.85,193.83,9.99612034]
[1760365610714,0.30654028,193.85,193.84,14.19756274]
[1760365610886,0.30654028,193.85,193.84,5.15889393]
[1760365611091,0.30654028,193.85,193.76,25.80487108]
[1760365611092,0.96654028,193.85,193.8,14.19862753]
[1760365611389,0.96654028,193.85,193.78,9.03866881]
[1760365611390,0.66,193.84,193.78,9.03866881]
[1760365611601,0.66,193.84,193.78,14.19916008]
[1760365612009,10.87647521,193.83,193.78,14.19916008]
[1760365612190,0.67,193.82,193.78,5.16049127]
[1760365612392,10.87647521,193.83,193.78,5.41785008]
[1760365612589,0.67,193.82,193.78,5.16049127]
[1760365612909,0.67,193.81,193.77,5.16074625]
[1760365613109,19.91514402,193.84,193.77,14.19941506]
[1760365613295,9.70866881,193.83,193.77,14.19941506]
[1760365613498,0.67,193.83,193.77,27.35861541]
[1760365613884,0.67,193.83,193.78,9.03866881]
[1760365614088,0.95136875,193.85,193.78,9.03866881]
[1760365614089,11.18301549,193.85,193.79,9.29594861]
[1760365614292,11.18301549,193.85,193.8,9.03866881]
[1760365614599,9.03866881,193.82,193.75,0.2572798]
[1760365614813,9.03866881,193.82,193.75,9.03866881]
[1760365615103,10.87647521,193.8,193.76,5.16102394]
[1760365615291,29.83866881,193.77,193.7,0.25722705]
[1760365615481,19.91514402,193.73,193.68,12.90785499]
[1760365615686,11.54647521,193.73,193.68,12.90785499]
[1760365615906,10.87647521,193.75,193.7,9.03866881]
[1760365616114,10.87647521,193.75,193.7,9.29646072]
[1760365616287,11.54647521,193.75,193.7,9.29646072]
[1760365616484,10.87647521,193.73,193.68,9.03866881]